fUSD/lending_fUSD_20241216
["ID","MTS","AMOUNT","RATE_DAILY","PERIOD"]
[345611370,1734381041967,-152.44915,0.00024999,4]
[345611371,1734381041976,-152.44915,0.00024999,4]
[345611372,1734381041986,-152.44915,0.00024999,4]
[345611373,1734381041995,-39031.64,0.00024999,2]
[345611374,1734381042004,-500.0,0.00024999,4]
[345611375,1734381042014,-500.0,0.00024999,4]
[345611376,1734381042023,-500.0,0.00024999,4]
[345611377,1734381042032,-500.0,0.00024999,4]
[345611378,1734381042042,-500.0,0.00024999,4]
[345611379,1734381042051,-500.0,0.00024999,4]
[345611380,1734381042060,-500.0,0.00024999,4]
[345611381,1734381042070,-500.0,0.00024999,4]
[345611382,1734381042079,-500.0,0.00024999,4]
[345611383,1734381042089,-500.0,0.00024999,4]
[345611384,1734381042098,-500.0,0.00024999,4]
[345611385,1734381042108,-500.0,0.00024999,4]
[345611386,1734381042118,-500.0,0.00024999,4]
[345611387,1734381042127,-500.0,0.00024999,4]
[345611388,1734381042136,-500.0,0.00024999,4]
[345611389,1734381042145,-500.0,0.00024999,4]
[345611390,1734381042156,-500.0,0.00024999,4]
[345611391,1734381042166,-500.0,0.00024999,4]
[345611392,1734381042175,-500.0,0.00024999,4]
[345611393,1734381042184,-500.0,0.00024999,4]
[345611394,1734381042194,-500.0,0.00024999,4]
[345611395,1734381042203,-500.0,0.00024999,4]
[345611396,1734381042212,-172.45198651,0.00024999,4]
[345611397,1734381042221,-500.0,0.00024999,4]
[345611398,1734381042232,-500.0,0.00024999,4]
[345611399,1734381042241,-500.0,0.00024999,4]
[345611400,1734381042250,-500.0,0.00024999,4]
[345611401,1734381042259,-500.0,0.00024999,4]
[345611402,1734381042268,-500.0,0.00024999,4]
[345611403,1734381042278,-500.0,0.00024999,4]
[345611404,1734381042287,-500.0,0.00024999,4]
[345611405,1734381042300,-500.0,0.00024999,4]
[345611406,1734381042310,-500.0,0.00024999,4]
[345611407,1734381042319,-500.0,0.00024999,4]
[345611408,1734381042328,-500.0,0.00024999,4]
[345611409,1734381042337,-311.66887392,0.00024999,4]
[345611410,1734381042346,-1636.23,0.00024999,4]
[345611411,1734381042355,-1636.23,0.00024999,4]
[345611412,1734381042365,-1636.23,0.00024999,4]
[345611413,1734381042375,-1636.23,0.00024999,4]
[345611414,1734381042384,-1636.23,0.00024999,4]
[345611415,1734381042393,-1636.23,0.00024999,4]
[345611416,1734381042404,-1636.23,0.00024999,4]
[345611417,1734381042414,-1636.23,0.00024999,4]
[345611418,1734381042424,-1636.23,0.00024999,4]
[345611419,1734381042434,-1636.23,0.00024999,4]
[345611420,1734381042443,-1636.23,0.00024999,4]
[345611421,1734381042454,-1636.23,0.00024999,4]
[345611422,1734381042465,-1636.23,0.00024999,4]
[345611423,1734381042474,-1636.23,0.00024999,4]
[345611424,1734381042483,-1636.23,0.00024999,4]
[345611425,1734381042492,-1636.23,0.00024999,4]
[345611426,1734381042502,-1636.23,0.00024999,4]
[345611427,1734381042511,-1636.23,0.00024999,4]
[345611428,1734381042527,-1636.23,0.00024999,4]
[345611429,1734381042537,-1636.23,0.00024999,4]
[345611430,1734381042549,-1636.23,0.00024999,4]
[345611431,1734381042558,-1636.36,0.00024999,4]
[345611432,1734381042567,-543.11,0.00024999,4]
[345611433,1734381042577,-543.11,0.00024999,4]
[345611434,1734381042586,-543.11,0.00024999,4]
[345611435,1734381042596,-543.11,0.00024999,4]
[345611436,1734381042606,-543.11,0.00024999,4]
[345611437,1734381042618,-543.11,0.00024999,4]
[345611438,1734381042630,-543.11,0.00024999,4]
[345611439,1734381042639,-543.11,0.00024999,4]
[345611440,1734381042648,-543.11,0.00024999,4]
[345611441,1734381042659,-543.11,0.00024999,4]
[345611442,1734381042669,-543.11,0.00024999,4]
[345611443,1734381042680,-543.11,0.00024999,4]
[345611444,1734381042689,-543.11,0.00024999,4]
[345611445,1734381042698,-543.11,0.00024999,4]
[345611446,1734381042708,-543.11,0.00024999,4]
[345611447,1734381042717,-543.11,0.00024999,4]
[345611448,1734381042726,-543.11,0.00024999,4]
[345611449,1734381042736,-543.11,0.00024999,4]
[345611450,1734381042745,-556.62,0.00024999,4]
[345611451,1734381042754,-543.11,0.00024999,4]
[345611452,1734381042764,-543.11,0.00024999,4]
[345611453,1734381042773,-556.62,0.00024999,4]
[345611454,1734381042782,-543.11,0.00024999,4]
[345611455,1734381042793,-556.62,0.00024999,4]
[345611456,1734381042802,-543.23,0.00024999,4]
[345611457,1734381042811,-556.62,0.00024999,4]
[345611458,1734381042820,-556.62,0.00024999,4]
[345611459,1734381042831,-556.62,0.00024999,4]
[345611460,1734381042840,-556.62,0.00024999,4]
[345611461,1734381042849,-556.62,0.00024999,4]
[345611462,1734381042859,-556.62,0.00024999,4]
[345611463,1734381042868,-556.62,0.00024999,4]
[345611465,1734381042877,-556.62,0.00024999,4]
[345611467,1734381042886,-556.62,0.00024999,4]
[345611469,1734381042895,-556.62,0.00024999,4]
[345611470,1734381042905,-556.62,0.00024999,4]
[345611471,1734381042914,-556.62,0.00024999,4]
[345611472,1734381042923,-556.62,0.00024999,4]
[345611473,1734381042932,-556.62,0.00024999,4]
[345611474,1734381042941,-556.62,0.00024999,4]
[345611476,1734381042950,-556.62,0.00024999,4]
[345611478,1734381042958,-556.62,0.00024999,4]
[345611479,1734381042967,-556.62,0.00024999,4]
[345611481,1734381042976,-556.63,0.00024999,4]
[345611482,1734381042986,-1750.54,0.00024999,4]
[345611483,1734381042995,-1750.54,0.00024999,4]
[345611484,1734381043003,-1750.54,0.00024999,4]
[345611485,1734381043012,-1750.54,0.00024999,4]
[345611487,1734381043022,-500.0,0.00024999,4]
[345611488,1734381043031,-1750.54,0.00024999,4]
[345611489,1734381043043,-1750.54,0.00024999,4]
[345611490,1734381043052,-500.0,0.00024999,4]
[345611492,1734381043061,-1750.54,0.00024999,4]
[345611494,1734381043070,-500.0,0.00024999,4]
[345611496,1734381043079,-1750.54,0.00024999,4]
[345611498,1734381043087,-500.0,0.00024999,4]
[345611500,1734381043096,-1750.54,0.00024999,4]
[345611501,1734381043104,-500.0,0.00024999,4]
[345611502,1734381043113,-1750.54,0.00024999,4]
[345611503,1734381043123,-500.0,0.00024999,4]
[345611504,1734381043132,-1750.54,0.00024999,4]
[345611505,1734381043141,-500.0,0.00024999,4]
[345611506,1734381043150,-1750.54,0.00024999,4]
[345611507,1734381043160,-500.0,0.00024999,4]
[345611508,1734381043171,-1750.54,0.00024999,4]
[345611509,1734381043180,-500.0,0.00024999,4]
[345611510,1734381043189,-1750.54,0.00024999,4]
[345611511,1734381043198,-500.0,0.00024999,4]
[345611512,1734381043206,-1750.54,0.00024999,4]
[345611513,1734381043215,-500.0,0.00024999,4]
[345611514,1734381043223,-1750.54,0.00024999,4]
[345611515,1734381043233,-500.0,0.00024999,4]
[345611516,1734381043242,-1750.54,0.00024999,4]
[345611517,1734381043251,-500.0,0.00024999,4]
[345611518,1734381043260,-1750.54,0.00024999,4]
[345611519,1734381043268,-1750.54,0.00024999,4]
[345611520,1734381043277,-500.0,0.00024999,4]
[345611521,1734381043285,-1750.54,0.00024999,4]
[345611522,1734381043298,-500.0,0.00024999,4]
[345611523,1734381043307,-1750.54,0.00024999,4]
[345611524,1734381043317,-500.0,0.00024999,4]
[345611525,1734381043326,-1750.61,0.00024999,4]
[345611526,1734381043335,-500.0,0.00024999,4]
[345611527,1734381043344,-500.0,0.00024999,4]
[345611528,1734381043354,-500.0,0.00024999,4]
[345611529,1734381043365,-500.0,0.00024999,4]
[345611530,1734381043374,-481.40417844,0.00024999,4]
[345611531,1734381043383,-500.0,0.00024999,4]
[345611532,1734381043391,-500.0,0.00024999,4]
[345611533,1734381043400,-500.0,0.00024999,4]
[345611534,1734381043409,-500.0,0.00024999,4]
[345611535,1734381043417,-325.55,0.00024999,4]
[345611536,1734381043426,-4260.19,0.00024999,4]
[345611537,1734381043435,-4260.19,0.00024999,4]
[345611538,1734381043444,-4260.19,0.00024999,4]
[345611539,1734381043454,-4260.19,0.00024999,4]
[345611540,1734381043463,-4260.19,0.00024999,4]
[345611541,1734381043472,-4260.19,0.00024999,4]
[345611542,1734381043481,-4260.19,0.00024999,4]
[345611543,1734381043490,-4260.19,0.00024999,4]
[345611544,1734381043499,-4260.19,0.00024999,4]
[345611545,1734381043507,-4260.19,0.00024999,4]
[345611547,1734381043516,-4260.19,0.00024999,4]
[345611548,1734381043525,-4260.19,0.00024999,4]
[345611549,1734381043535,-4260.19,0.00024999,4]
[345611550,1734381043547,-4260.19,0.00024999,4]
[345611551,1734381043557,-4260.19,0.00024999,4]
[345611552,1734381043568,-4260.19,0.00024999,4]
[345611554,1734381043578,-4260.19,0.00024999,4]
[345611555,1734381043587,-4260.19,0.00024999,4]
[345611556,1734381043596,-4260.19,0.00024999,4]
[345611557,1734381043606,-4260.19,0.00024999,4]
[345611558,1734381043616,-4260.19,0.00024999,4]
[345611559,1734381043629,-4260.33345974,0.00024999,4]
[345611560,1734381043638,-500.0,0.00024999,4]
[345611561,1734381043647,-500.0,0.00024999,4]
[345611563,1734381043658,-500.0,0.00024999,4]
[345611564,1734381043668,-500.0,0.00024999,4]
[345611565,1734381043678,-500.0,0.00024999,4]
[345611566,1734381043688,-500.0,0.00024999,4]
[345611567,1734381043697,-500.0,0.00024999,4]
[345611568,1734381043706,-500.0,0.00024999,4]
[345611569,1734381043716,-500.0,0.00024999,4]
[345611570,1734381043726,-500.0,0.00024999,4]
[345611571,1734381043735,-500.0,0.00024999,4]
[345611572,1734381043745,-500.0,0.00024999,4]
[345611573,1734381043754,-243.55,0.00024999,4]
[345611574,1734381043763,-500.0,0.00024999,4]
[345611575,1734381043773,-500.0,0.00024999,4]
[345611576,1734381043782,-500.0,0.00024999,4]
[345611577,1734381043793,-500.0,0.00024999,4]
[345611578,1734381043803,-500.0,0.00024999,4]
[345611579,1734381043813,-500.0,0.00024999,4]
[345611580,1734381043822,-500.0,0.00024999,4]
[345611581,1734381043831,-500.0,0.00024999,4]
[345611582,1734381043840,-500.0,0.00024999,4]
[345611583,1734381043850,-500.0,0.00024999,4]
[345611584,1734381043859,-500.0,0.00024999,4]
[345611585,1734381043869,-500.0,0.00024999,4]
[345611586,1734381043878,-241.8794,0.00024999,4]
[345611587,1734381043887,-500.0,0.00024999,4]
[345611588,1734381043896,-500.0,0.00024999,4]
[345611589,1734381043906,-187.86931465,0.00024999,4]
[345611590,1734381043915,-500.0,0.00024999,4]
[345611591,1734381043924,-500.0,0.00024999,4]
[345611592,1734381043933,-500.0,0.00024999,4]
[345611593,1734381043943,-500.0,0.00024999,4]
[345611594,1734381043952,-526.42,0.00024999,4]
[345611595,1734381043961,-999.0,0.00024999,2]
[345611596,1734381043971,-1216.3,0.00024999,4]
[345611597,1734381043980,-1216.3,0.00024999,4]
[345611598,1734381043989,-1216.3,0.00024999,4]
[345611599,1734381043999,-1216.3,0.00024999,4]
[345611600,1734381044008,-1216.3,0.00024999,4]
[345611601,1734381044017,-1216.3,0.00024999,4]
[345611602,1734381044026,-1216.3,0.00024999,4]
[345611603,1734381044035,-1216.3,0.00024999,4]
[345611604,1734381044047,-1216.3,0.00024999,4]
[345611605,1734381044056,-1216.3,0.00024999,4]
[345611606,1734381044066,-1216.3,0.00024999,4]
[345611607,1734381044075,-1216.3,0.00024999,4]
[345611608,1734381044085,-1216.3,0.00024999,4]
[345611609,1734381044094,-1216.3,0.00024999,4]
[345611610,1734381044104,-1216.3,0.00024999,4]
[345611611,1734381044113,-1216.3,0.00024999,4]
[345611612,1734381044122,-1216.3,0.00024999,4]
[345611613,1734381044131,-1216.3,0.00024999,4]
[345611614,1734381044141,-1216.3,0.00024999,4]
[345611615,1734381044151,-1216.3,0.00024999,4]
[345611616,1734381044169,-1216.3,0.00024999,4]
[345611617,1734381044178,-1216.52,0.00024999,4]
[345611618,1734381044187,-562.02,0.00024999,4]
[345611619,1734381044197,-562.02,0.00024999,4]
[345611620,1734381044207,-562.02,0.00024999,4]
[345611621,1734381044217,-562.02,0.00024999,4]
[345611622,1734381044226,-562.02,0.00024999,4]
[345611623,1734381044236,-562.02,0.00024999,4]
[345611624,1734381044246,-562.02,0.00024999,4]
[345611625,1734381044256,-562.02,0.00024999,4]
[345611626,1734381044265,-562.02,0.00024999,4]
[345611627,1734381044275,-562.02,0.00024999,4]
[345611628,1734381044284,-562.02,0.00024999,4]
[345611629,1734381044296,-562.02,0.00024999,4]
[345611630,1734381044306,-562.02,0.00024999,4]
[345611631,1734381044315,-562.02,0.00024999,4]
[345611632,1734381044325,-562.02,0.00024999,4]
[345611633,1734381044334,-562.02,0.00024999,4]
[345611634,1734381044344,-562.02,0.00024999,4]
[345611635,1734381044354,-562.02,0.00024999,4]
[345611636,1734381044363,-562.02,0.00024999,4]
[345611637,1734381044374,-562.02,0.00024999,4]
[345611638,1734381044383,-562.02,0.00024999,4]
[345611639,1734381044393,-624.37,0.00024999,4]
[345611640,1734381044508,-562.16,0.00024999,4]
[345611641,1734381044533,-624.37,0.00024999,4]
[345611642,1734381044544,-624.37,0.00024999,4]
[345611643,1734381044558,-624.37,0.00024999,4]
[345611644,1734381044567,-624.37,0.00024999,4]
[345611645,1734381044576,-624.37,0.00024999,4]
[345611646,1734381044587,-624.37,0.00024999,4]
[345611647,1734381044608,-624.37,0.00024999,4]
[345611648,1734381044631,-624.37,0.00024999,4]
[345611649,1734381044641,-624.37,0.00024999,4]
[345611650,1734381044650,-624.37,0.00024999,4]
[345611651,1734381044659,-624.37,0.00024999,4]
[345611652,1734381044670,-624.37,0.00024999,4]
[345611653,1734381044679,-624.37,0.00024999,4]
[345611654,1734381044688,-624.37,0.00024999,4]
[345611655,1734381044699,-624.37,0.00024999,4]
[345611656,1734381044708,-624.37,0.00024999,4]
[345611657,1734381044718,-624.37,0.00024999,4]
[345611658,1734381044727,-624.37,0.00024999,4]
[345611659,1734381044736,-624.37,0.00024999,4]
[345611660,1734381044745,-624.37,0.00024999,4]
[345611661,1734381044754,-624.48900002,0.00024999,4]
[345611662,1734381044764,-160.45861042,0.00025,2]
[345611663,1734381044773,-3111.8099318,0.00025,2]
[345611664,1734381044782,-2772003.75410936,0.00025,4]
[345611665,1734381044793,-70147.00625304,0.00025,2]
[345611666,1734381044802,-29231246.27346347,0.00025,2]
[345611667,1734381044824,-337.83016865,0.00025,2]
[345611668,1734381044836,-28222.73637636,0.00025,2]
[345611669,1734381044847,-1023.88708352,0.00025,2]
[345611670,1734381044858,-12495.05744502,0.00025,2]
[345611671,1734381044934,-300.0,0.000239,8]
[345611672,1734381044943,-198.34201269,0.00024898,2]
[345611673,1734381044955,-500.0,0.00024996,4]
[345611674,1734381044964,-718.90758267,0.00025,2]
[345611675,1734381044979,-278.52617385,0.00025,2]
[345611676,1734381044990,-3522.50984205,0.00025,2]
[345611677,1734381045001,-1247.63881295,0.00025,2]
[345611678,1734381045012,-475.8703,0.00025,2]
[345611679,1734381045172,-16.98808173,0.00024,8]
[345611680,1734381045186,-583.01191827,0.00024,8]
[345611681,1734381045196,-500.0,0.00024899,4]
[345611682,1734381045205,-1112.26060303,0.00025,2]
[345611683,1734381045220,-500.0,0.00024998,4]
[345611684,1734381045229,-30310.42719147,0.00025,2]
[345611685,1734381045240,-8116.81482242,0.00025,2]
[345611686,1734381045251,-74386.790661,0.00025,2]
[345611687,1734381045262,-8127.8,0.00025,2]
[345611688,1734381045272,-430.79973,0.00025,2]
[345611689,1734381045284,-6332.2849218,0.00025,2]
[345611690,1734381045297,-2741.33438901,0.00025,2]
[345611691,1734381045308,-296.21242944,0.00025,2]
[345611692,1734381045319,-1830.0600117,0.00025,2]
[345611694,1734381046323,-900.0,0.000241,8]
[345611695,1734381046333,-1200.0,0.000242,8]
[345611696,1734381046343,-198.34201269,0.000249,2]
[345611697,1734381046352,-17304.73772716,0.00025,2]
[345611698,1734381046365,-7750.68223308,0.00025,2]
[345611699,1734381046378,-5425.72346049,0.00025,2]
[345611700,1734381046391,-531.41457158,0.00025,2]
[345611701,1734381046402,-10635.228,0.00025,2]
[345611702,1734381046413,-1017.90674999,0.00025,2]
[345611703,1734381046423,-405877.78088858,0.00025,2]
[345611704,1734381046434,-14755.99041236,0.00025,2]
[345611705,1734381046445,-60945.0,0.00025,2]
[345611706,1734381046477,-51751.71673622,0.00025,2]
[345611707,1734381046488,-996.300305,0.00025,2]
[345611708,1734381046499,-3999.42611812,0.00025,2]
[345611714,1734381079078,18922.60051,0.0001,2]
[345611716,1734381275168,274835.66347334,0.00013,2]
[345611718,1734381344808,158.41,0.00010137,2]
[345611721,1734381933605,450.0,0.00013,2]
[345611722,1734382029130,-166.83,0.00018691,2]
[345611723,1734382029151,-1854.121589,0.00019795,2]
[345611724,1734382029171,-158.41,0.00019895,2]
[345611725,1734382029192,-150.0,0.00019973,2]
[345611726,1734382029213,-1577.88853437,0.00019973,2]
[345611727,1734382029233,-2676.48641393,0.00019999,2]
[345611728,1734382029254,-550.0,0.00019999,2]
[345611729,1734382029276,-56120.41534578,0.0002,2]
[345611730,1734382029298,-3486.36917754,0.0002,10]
[345611731,1734382029317,-76217.47596815,0.0002,10]
[345611732,1734382029336,-1395.71,0.00021101,2]
[345611733,1734382029356,-480.35868664,0.00021164,2]
[345611734,1734382029375,-250.0,0.00021486,2]
[345611735,1734382029395,-197.11,0.00021625,2]
[345611736,1734382029415,-1000.0,0.00021625,2]
[345611737,1734382029436,-150.0,0.00022488,4]
[345611738,1734382029456,-150.0,0.00022488,4]
[345611739,1734382029476,-150.0,0.00022488,4]
[345611740,1734382029496,-561.96,0.00022645,2]
[345611741,1734382029516,-3740.74,0.00022991,2]
[345611742,1734382029537,-164.94,0.00022995,2]
[345611743,1734382029558,-500.0,0.00023018,2]
[345611744,1734382029578,-500.0,0.00023018,2]
[345611745,1734382029598,-223.4800002,0.00023018,2]
[345611746,1734382029617,-5030.78573789,0.00023019,2]
[345611747,1734382036109,-208.63638111,0.00019795,2]
[345611748,1734382036131,-547.05426211,0.00023019,2]
[345611749,1734382036154,-197.11,0.00023225,2]
[345611750,1734382036185,-1395.71,0.00023365,2]
[345611751,1734382036206,-164.32,0.00023434,2]
[345611752,1734382036226,-500.0,0.00023479,2]
[345611753,1734382036247,-250.0,0.00023488,2]
[345611754,1734382036268,-638.96,0.0002349,2]
[345611755,1734382036288,-250.0,0.00023497,2]
[345611756,1734382036308,-161.72,0.00023544,2]
[345611757,1734382036329,-150.94,0.00023591,30]
[345611758,1734382036350,-250.0,0.00023604,2]
[345611759,1734382036374,-153.0,0.00023627,2]
[345611760,1734382036395,-153.0,0.00023627,2]
[345611761,1734382036424,-153.0,0.00023627,2]
[345611762,1734382036446,-153.0,0.00023627,2]
[345611763,1734382036467,-153.0,0.00023628,2]
[345611764,1734382036488,-153.0,0.00023628,2]
[345611765,1734382036509,-153.0,0.00023628,2]
[345611766,1734382036530,-153.0,0.00023629,2]
[345611767,1734382036551,-153.0,0.00023629,2]
[345611768,1734382036572,-153.0,0.00023629,2]
[345611769,1734382036593,-153.0,0.00023629,2]
[345611770,1734382036614,-486.771,0.0002375,2]
[345611771,1734382036635,-23900.0,0.00023833,2]
[345611772,1734382036656,-1191.252,0.00024026,5]
[345611773,1734382036684,-950.0,0.0002425,2]
[345611774,1734382036705,-1000.0,0.00024328,2]
[345611775,1734382036725,-950.0,0.000245,2]
[345611776,1734382036746,-516.34297934,0.00024599,2]
[345611777,1734382036767,-516.34297925,0.00024632,2]
[345611778,1734382036788,-500.0,0.00024657,4]
[345611779,1734382036807,-500.0,0.00024657,4]
[345611780,1734382036827,-500.0,0.00024657,4]
[345611781,1734382036848,-200.0,0.00024657,4]
[345611782,1734382036868,-545.16,0.00024657,4]
[345611783,1734382036888,-500.0,0.00024657,4]
[345611784,1734382036912,-575.68,0.00024657,4]
[345611785,1734382036938,-500.0,0.00024657,4]
[345611786,1734382036961,-500.0,0.00024657,4]
[345611787,1734382036983,-500.0,0.00024657,4]
[345611788,1734382037004,-500.0,0.00024657,4]
[345611789,1734382037024,-329.07,0.00024657,4]
[345611790,1734382037045,-500.0,0.00024657,4]
[345611791,1734382037069,-500.0,0.00024657,4]
[345611792,1734382037089,-422.6852312,0.00024657,4]
[345611793,1734382037109,-174.16,0.00024657,4]
[345611794,1734382037129,-500.0,0.00024657,4]
[345611795,1734382037150,-500.0,0.00024657,4]
[345611796,1734382037176,-500.0,0.00024657,4]
[345611797,1734382037196,-472.13183421,0.00024657,4]
[345611802,1734382188767,159.12,0.00010137,2]
[345611805,1734382232398,-197.11,0.00023876,2]
[345611806,1734382232408,-588.51130943,0.00023878,2]
[345611807,1734382232454,-611.52841288,0.00023878,2]
[345611808,1734382232514,-312.9138,0.00023878,2]
[345611809,1734382232526,-22387.04647769,0.00023878,2]
[345611810,1734382232536,-2500.0,0.00024557,2]
[345611811,1734382232546,-27.86816579,0.00024657,4]
[345611812,1734382232557,-500.0,0.00024657,4]
[345611813,1734382232567,-500.0,0.00024657,4]
[345611814,1734382232577,-258.68,0.00024657,4]
[345611815,1734382232586,-275.92958737,0.00024657,4]
[345611816,1734382232595,-599.05,0.00024657,4]
[345611817,1734382232605,-500.0,0.00024657,4]
[345611818,1734382232614,-500.0,0.00024657,4]
[345611819,1734382232624,-500.0,0.00024657,4]
[345611821,1734382232633,-500.0,0.00024657,4]
[345611823,1734382232642,-500.0,0.00024657,4]
[345611825,1734382232651,-500.0,0.00024657,4]
[345611826,1734382232660,-500.0,0.00024657,4]
[345611828,1734382232670,-500.0,0.00024657,4]
[345611830,1734382232680,-500.0,0.00024657,4]
[345611832,1734382232689,-500.0,0.00024657,4]
[345611834,1734382232698,-500.0,0.00024657,4]
[345611836,1734382232708,-500.0,0.00024657,4]
[345611838,1734382232718,-508.60882008,0.00024657,4]
[345611840,1734382232727,-500.0,0.00024657,4]
[345611842,1734382232737,-509.77598357,0.00024657,4]
[345611844,1734382232747,-515.76314086,0.00024657,4]
[345611846,1734382232756,-500.0,0.00024657,4]
[345611848,1734382232766,-500.0,0.00024657,4]
[345611850,1734382232776,-500.0,0.00024657,4]
[345611852,1734382232786,-500.0,0.00024657,4]
[345611854,1734382232795,-591.78,0.00024657,4]
[345611856,1734382232804,-500.0,0.00024657,4]
[345611858,1734382232814,-354.00970704,0.00024657,4]
[345611861,1734382232829,-167.61029296,0.00024657,4]
[345611863,1734382232839,-340.79156331,0.00024657,2]
[345611865,1734382232848,-612.04,0.00024657,4]
[345611867,1734382232858,-500.0,0.00024657,2]
[345611869,1734382232867,-42.89476365,0.00024657,4]
[345611871,1734382232882,-228.07615266,0.00024657,4]
[345611873,1734382232892,-583.75861426,0.00024657,4]
[345611875,1734382232902,-500.0,0.00024657,4]
[345611877,1734382232912,-500.0,0.00024657,4]
[345611879,1734382232921,-500.0,0.00024657,4]
[345611881,1734382232931,-500.0,0.00024657,4]
[345611883,1734382232940,-500.0,0.00024657,4]
[345611885,1734382232950,-500.0,0.00024657,4]
[345611887,1734382232962,-500.0,0.00024657,4]
[345611889,1734382232971,-500.0,0.00024657,4]
[345611891,1734382232980,-574.4,0.00024657,4]
[345611893,1734382232990,-500.0,0.00024657,4]
[345611895,1734382233002,-500.0,0.00024657,4]
[345611897,1734382233012,-500.0,0.00024657,4]
[345611899,1734382233021,-522.07227372,0.00024657,4]
[345611901,1734382233032,-500.0,0.00024657,4]
[345611903,1734382233047,-500.0,0.00024657,4]
[345611905,1734382233058,-501.99034457,0.00024657,4]
[345611907,1734382233069,-500.0,0.00024657,4]
[345611909,1734382233079,-500.0,0.00024657,4]
[345611911,1734382233091,-637.86244229,0.00024657,4]
[345611913,1734382233101,-516.34297925,0.00024666,2]
[345611915,1734382233116,-436.37,0.00024676,2]
[345611917,1734382233127,-769.47,0.00024676,2]
[345611919,1734382233138,-769.47,0.00024676,2]
[345611921,1734382233148,-436.37,0.00024676,2]
[345611923,1734382233159,-769.47,0.00024676,2]
[345611924,1734382233170,-769.47,0.00024676,2]
[345611926,1734382233181,-436.37,0.00024676,2]
[345611928,1734382233191,-436.37,0.00024676,2]
[345611930,1734382233201,-872.2,0.00024676,2]
[345611933,1734382233214,-390.49,0.00024676,2]
[345611934,1734382233225,-769.47,0.00024676,2]
[345611936,1734382233235,-769.47,0.00024676,2]
[345611938,1734382233246,-626.22,0.00024676,2]
[345611940,1734382233256,-168.08,0.00024698,2]
[345611942,1734382233267,-168.08,0.00024698,2]
[345611944,1734382233278,-168.08,0.00024698,2]
[345611946,1734382233288,-168.08,0.00024698,2]
[345611948,1734382233299,-168.08,0.00024698,2]
[345611950,1734382233310,-168.08,0.00024698,2]
[345611952,1734382233320,-168.08,0.00024698,2]
[345611954,1734382233330,-500.0,0.00024698,4]
[345611956,1734382233342,-504.32477113,0.00024698,4]
[345611958,1734382233352,-735.74,0.00024698,4]
[345611960,1734382233362,-556.62,0.00024698,4]
[345611962,1734382233372,-1750.54,0.00024698,4]
[345611964,1734382233382,-500.0,0.00024698,4]
[345611966,1734382233392,-491.0,0.00024698,4]
[345611968,1734382233402,-4281.02,0.00024698,4]
[345611970,1734382233412,-500.0,0.00024698,4]
[345611972,1734382233421,-285.89,0.00024698,4]
[345611974,1734382233431,-1216.3,0.00024698,4]
[345611976,1734382233440,-409.29,0.00024698,4]
[345611978,1734382233449,-500.0,0.00024698,4]
[345611980,1734382233459,-7500.0,0.00024698,2]